bitfinex-derivatives/quotes_SOLF0:USTF0_20241222
["timestamp","ask_amount","ask_price","bid_price","bid_amount"]
[1734897042878,2.7965,178.93,178.89,2.7969]
[1734897043085,4.22,179.01,178.86,36.69527733]
[1734897043288,35.07407733,178.99,178.84,1.7425]
[1734897043589,35.07407733,178.99,178.79,35.07407733]
[1734897043590,35.07407733,178.93,178.79,35.07407733]
[1734897043790,4.22,178.92,178.78,4.9693]
[1734897043990,35.07407733,178.9,178.78,4.9693]
[1734897044188,35.07407733,178.87,178.76,92.30007821]
[1734897044393,2.7979,178.84,178.76,92.30007821]
[1734897044693,35.07407733,178.84,178.73,3.2607]
[1734897045088,2.799,178.77,178.73,3.2607]
[1734897045395,35.07407733,178.81,178.71,92.30007821]
[1734897045896,4.22,178.86,178.67,238.08930965]
[1734897045897,35.07407733,178.84,178.68,35.07407733]
[1734897046091,35.07407733,178.84,178.67,7.6391]
[1734897046092,35.07407733,178.87,178.71,35.07407733]
[1734897046592,4.22,178.89,178.71,35.07407733]
[1734897046793,35.07407733,178.91,178.74,35.07407733]
[1734897046998,2.798,178.84,178.78,2.7987]
[1734897047298,4.22,178.9,178.77,35.07407733]
[1734897047700,4.22,178.9,178.78,3.4153]
[1734897048199,2.7974,178.87,178.82,2.7982]
[1734897048395,2.7974,178.87,178.78,3.4153]
[1734897048699,2.7972,178.89,178.83,2.798]
[1734897048901,4.22,178.94,178.83,2.798]
[1734897049097,4.22,178.94,178.81,4.22]
[1734897049398,2.7974,178.88,178.81,7.0182]
[1734897049599,2.7974,178.88,178.81,4.22]
[1734897049999,2.7974,178.87,178.82,2.7981]
[1734897050301,4.22,178.94,178.81,4.22]
[1734897050593,35.07407733,178.97,178.81,4.22]
[1734897050799,39.29407733,178.97,178.81,4.22]
[1734897051100,2.797,178.9,178.81,4.22]
[1734897051699,4.22,178.98,178.83,35.07407733]
[1734897051899,4.22,178.98,178.84,1.6917]
[1734897052099,2.7965,178.93,178.88,2.7972]
[1734897052501,4.22,178.98,178.87,4.22]
[1734897055405,4.22,178.98,178.87,7.0174]
[1734897056404,2.7968,178.91,178.87,7.0174]
[1734897057608,2.7966,178.92,178.87,7.0174]
[1734897058005,2.7966,178.92,178.88,3.3226]
[1734897058199,4.22,178.98,178.88,3.3226]
[1734897058601,4.22,178.98,178.84,1.6917]
[1734897058602,35.07407733,178.97,178.84,1.6917]
[1734897058812,35.07407733,178.94,178.77,39.17407733]
[1734897059108,35.07407733,178.94,178.78,1.7422]
[1734897060805,35.07407733,178.88,178.75,3.2522]
[1734897061011,2.7989,178.78,178.75,3.2522]
[1734897061411,4.12,178.87,178.75,3.2522]
[1734897062409,2.7989,178.78,178.75,3.2522]
[1734897062912,4.12,178.87,178.75,3.2522]
[1734897063709,2.7983,178.82,178.75,3.2522]
[1734897063912,4.12,178.87,178.76,35.07407733]
[1734897064114,39.19407733,178.91,178.79,2.7986]
[1734897064509,4.12,178.91,178.81,2.7983]
[1734897064712,4.12,178.91,178.78,1.6094]
[1734897065013,2.798,178.83,178.78,1.6094]
[1734897066316,4.12,178.91,178.78,1.6094]
[1734897066715,2.7977,178.86,178.81,2.7983]
[1734897066919,4.12,178.92,178.78,1.6094]
[1734897067111,35.07407733,178.91,178.78,1.6094]
[1734897067310,35.07407733,178.91,178.78,4.4081]
[1734897067711,35.07407733,178.91,178.78,1.6094]
[1734897067911,2.7983,178.81,178.78,1.6094]
[1734897068111,35.07407733,178.91,178.78,1.6094]
[1734897068312,2.7978,178.85,178.75,6.0514]
[1734897068514,35.07407733,178.88,178.75,6.0514]
[1734897068811,39.19407733,178.92,178.76,35.07407733]
[1734897069017,39.19407733,178.92,178.76,36.75317733]
[1734897069412,35.07407733,178.95,178.79,35.07407733]
[1734897069613,4.12,178.94,178.8,4.12]
[1734897069817,86.20617478,178.97,178.82,35.07407733]
[1734897070017,90.32617478,178.97,178.82,35.07407733]
[1734897070313,86.20617478,178.97,178.82,35.07407733]
[1734897070715,2.797,178.9,178.82,35.07407733]
[1734897071019,86.20617478,178.97,178.82,35.07407733]
[1734897071215,2.7972,178.89,178.85,2.7976]
[1734897071424,35.07407733,178.95,178.8,4.12]
[1734897072220,2.7973,178.88,178.83,2.7979]
[1734897072518,35.07407733,178.95,178.83,2.7979]
[1734897073519,2.7973,178.88,178.83,2.7979]
[1734897074020,2.7968,178.91,178.85,2.7976]
[1734897074212,35.07407733,178.95,178.85,2.7976]
[1734897074714,2.7966,178.92,178.85,2.7976]
[1734897074917,35.07407733,178.95,178.86,2.7975]
[1734897075118,35.07407733,178.95,178.79,35.07407733]
[1734897075418,35.07407733,178.89,178.77,2.7988]
[1734897075611,4.12,178.88,178.75,3.2522]
[1734897076011,4.12,178.88,178.76,2.7991]
[1734897076823,4.12,178.88,178.75,3.2522]
[1734897078425,2.7986,178.8,178.76,2.7991]
[1734897079021,4.12,178.88,178.75,3.2522]
[1734897079222,4.12,178.88,178.76,35.07407733]
[1734897079421,35.07407733,178.96,178.79,35.07407733]
[1734897079617,11.11594487,178.95,178.85,2.7975]
[1734897080417,15.31338354,178.95,178.85,2.7975]
[1734897080621,15.31338354,178.95,178.84,2.7978]
[1734897081522,15.31329403,178.95,178.84,2.7978]
[1734897082023,15.31329403,178.95,178.82,39.19407733]
[1734897082423,15.31329403,178.95,178.82,4.12]
[1734897083223,11.11594487,178.95,178.82,4.12]
[1734897083526,19.43329403,178.96,178.85,2.7976]
[1734897084129,2.797,178.9,178.85,2.7976]
[1734897085229,4.12,178.96,178.82,39.19407733]
[1734897085430,19.4558726,178.96,178.83,2.7979]
[1734897085726,19.4558726,178.96,178.82,39.19407733]
[1734897086030,19.4558726,178.96,178.82,4.12]
[1734897086232,41.07833903,178.96,178.8,1.7197]
[1734897086427,21.62246643,178.93,178.8,4.5181]
[1734897086928,2.7978,178.85,178.8,1.7197]
[1734897087232,11.13882486,178.93,178.82,21.62246643]
[1734897087433,32.76129129,178.96,178.83,4.12]
[1734897087627,11.13882486,178.96,178.85,21.62246643]
[1734897087836,86.20617478,178.97,178.85,21.62246643]
[1734897089133,2.7969,178.91,178.87,2.7974]
[1734897089529,107.82864121,178.97,178.84,1.6108]
[1734897089728,4.19704409,178.96,178.84,1.6108]
[1734897089926,21.62246643,178.94,178.84,1.6108]
[1734897090334,32.75132283,178.94,178.8,4.5181]
[1734897090534,21.62246643,178.91,178.76,23.32336643]
[1734897090734,4.04,178.9,178.76,1.7009]
[1734897090935,21.62246643,178.88,178.76,1.7009]
[1734897091325,21.62246643,178.88,178.76,4.5]
[1734897091326,2.7985,178.8,178.76,4.5]
[1734897091526,21.62246643,178.88,178.76,1.7009]
[1734897092130,35.17041517,178.87,178.76,1.7009]
[1734897092330,0.1239,178.89,178.76,1.7009]
[1734897093027,11.24840043,178.89,178.76,1.7009]
[1734897093336,2.7984,178.81,178.76,4.4999]
[1734897094031,2.7985,178.8,178.76,4.4999]
[1734897094535,35.17041517,178.87,178.72,4.04]
[1734897094734,35.17041517,178.84,178.7,5.0119]
[1734897095137,35.17041517,178.81,178.7,5.0119]
[1734897095336,5.6395,178.8,178.7,1.6968]
[1734897095635,2.7997,178.73,178.7,1.6968]
[1734897095832,5.6395,178.8,178.67,92.30007821]
[1734897096035,5.6395,178.8,178.66,1.7286]
[1734897096235,0.1269,178.79,178.66,1.7286]
[1734897096537,1.5995,178.8,178.68,35.17041517]
[1734897096742,2.7989,178.78,178.73,2.7994]
[1734897097140,1.5995,178.85,178.71,35.17041517]
[1734897097639,4.1669,178.88,178.74,35.17041517]
[1734897097839,2.7982,178.82,178.78,2.7986]
[1734897098038,4.1669,178.88,178.76,4.04]
[1734897098240,39.21041517,178.9,178.76,4.04]
[1734897099443,2.7982,178.82,178.77,2.7988]
[1734897099644,39.21041517,178.9,178.77,2.7988]
[1734897100343,35.17041517,178.9,178.8,2.7984]
[1734897100542,1.7285,178.92,178.77,35.17041517]
[1734897100845,1.7285,178.92,178.8,35.17041517]
[1734897101041,39.21041517,178.96,178.8,35.17041517]
[1734897101247,2.7973,178.88,178.8,35.17041517]
[1734897101548,1.773,178.95,178.8,35.17041517]
[1734897102041,1.773,178.95,178.76,4.04]
[1734897102249,35.17041517,178.93,178.77,35.17041517]
[1734897102547,1.773,178.95,178.8,35.17041517]
[1734897102742,2.7972,178.89,178.83,2.7979]
[1734897102943,86.20617478,178.97,178.83,35.17041517]
[1734897103148,86.20617478,178.97,178.84,1.6752]
[1734897103447,11.11567091,178.96,178.84,1.6752]
[1734897103850,4.19724453,178.96,178.84,1.6752]
[1734897104054,35.17041517,178.94,178.84,1.6752]
[1734897104244,2.7979,178.84,178.82,4.04]
[1734897104542,4.04,178.93,178.8,2.7984]
[1734897104735,4.04,178.93,178.78,5.6729]
[1734897105943,4.1631,178.93,178.78,1.6329]
[1734897106146,4.1631,178.93,178.78,2.7987]
[1734897106341,4.1631,178.93,178.77,39.21041517]
[1734897106748,4.1631,178.93,178.81,2.7983]
[1734897106951,4.1631,178.93,178.77,39.21041517]
[1734897107843,2.7977,178.86,178.81,2.7983]
[1734897108043,4.1631,178.93,178.81,2.7983]
[1734897108243,4.1631,178.93,178.77,39.21041517]
[1734897108657,2.7979,178.84,178.79,2.7985]
[1734897110249,2.7979,178.84,178.8,2.7984]
[1734897111253,11.10905547,178.93,178.8,35.17041517]
[1734897111455,24.0783712,179.0,178.8,35.17041517]
[1734897111456,4.04,178.94,178.8,35.17041517]
[1734897111655,4.04,178.94,178.77,4.04]
[1734897111950,35.17041517,178.91,178.77,39.21041517]
[1734897112149,1.7685,178.9,178.77,4.04]
[1734897112344,1.7685,178.9,178.79,2.7985]
[1734897112648,1.7685,178.9,178.76,5.6729]
[1734897112859,6.09188201,178.9,178.76,1.6329]
[1734897113047,2.7985,178.81,178.76,1.6329]
[1734897113353,4.04,178.87,178.71,35.17041517]
[1734897113554,4.04,178.87,178.73,2.7995]
[1734897113953,2.7989,178.78,178.73,2.7995]
[1734897114151,4.04,178.87,178.76,2.7991]
[1734897114350,4.04,178.87,178.74,35.17041517]
[1734897114545,2.7983,178.82,178.74,35.17041517]
[1734897114955,2.7983,178.82,178.78,2.7988]
[1734897115156,1.8933,178.9,178.77,4.04]
[1734897115456,5.9333,178.9,178.78,2.7987]
[1734897115876,2.7981,178.83,178.78,2.7987]
[1734897116356,2.7981,178.83,178.79,2.7986]
[1734897118556,5.9333,178.9,178.77,39.21041517]
[1734897119150,5.9333,178.9,178.78,1.6682]
[1734897119362,1.8933,178.9,178.79,1.7183]
[1734897119855,1.7685,178.9,178.79,1.7183]
[1734897120549,2.7985,178.8,178.77,2.7988]
[1734897121554,35.17041517,178.88,178.73,3.96]
[1734897121757,1.8937,178.9,178.77,35.17041517]
[1734897122159,1.8937,178.9,178.74,35.17041517]
[1734897122356,6.0921305,178.9,178.74,35.17041517]
[1734897122556,12.99548956,178.9,178.74,35.17041517]
[1734897122959,1.8937,178.9,178.74,35.17041517]
[1734897124054,1.8937,178.9,178.8,2.7984]
[1734897124256,1.8937,178.9,178.71,25.00133123]
[1734897124257,21.63483123,178.88,178.71,25.00133123]
[1734897124468,2.7992,178.76,178.72,2.7997]
[1734897124664,3.96,178.82,178.71,3.3665]
[1734897124954,21.63483123,178.85,178.71,3.3665]
[1734897125159,2.7985,178.8,178.76,2.799]
[1734897125361,2.7985,178.8,178.72,3.96]
[1734897125362,3.96,178.86,178.72,3.96]
[1734897125662,2.7982,178.82,178.78,2.7987]
[1734897125957,3.96,178.86,178.74,21.63483123]
[1734897126356,2.798,178.83,178.79,2.7985]
[1734897127157,2.7984,178.81,178.78,2.7987]
[1734897127359,3.96,178.86,178.73,3.96]
[1734897128364,21.63483123,178.85,178.73,3.96]
[1734897128853,21.63483123,178.85,178.71,3.3665]
[1734897129662,21.63483123,178.85,178.71,25.00133123]
[1734897129964,3.96,178.86,178.71,25.00133123]
[1734897130155,3.96,178.86,178.71,3.3665]
[1734897131262,35.17263089,178.84,178.71,3.3665]
[1734897131664,2.7995,178.74,178.71,3.3665]
[1734897132256,2.7995,178.74,178.71,1.7183]
[1734897132666,2.7995,178.74,178.71,4.5181]
[1734897132966,2.7993,178.75,178.71,4.5181]
[1734897133166,3.96,178.8,178.71,1.7183]
[1734897133372,5.6313,178.82,178.71,1.7183]
[1734897133562,2.799,178.77,178.71,1.7183]
[1734897133762,2.799,178.77,178.73,2.7995]
[1734897134558,2.799,178.77,178.71,1.7183]
[1734897134559,2.7987,178.79,178.71,1.7183]
[1734897134762,0.1252,178.9,178.75,35.17263089]
[1734897134964,3.96,178.89,178.76,1.6144]
[1734897135165,39.13263089,178.89,178.76,1.6144]
[1734897135364,15.32344593,178.88,178.76,1.6144]
[1734897135563,2.7987,178.79,178.76,1.6144]
[1734897137267,15.32344593,178.88,178.76,1.6144]
[1734897137462,15.08468041,178.88,178.76,1.6144]
[1734897137670,3.96,178.88,178.76,1.6144]
[1734897137968,35.17263089,178.87,178.77,2.7989]
[1734897139068,3.96,178.88,178.79,2.7986]
[1734897139362,12.76434382,178.91,178.78,3.96]
[1734897139668,5.5892,178.91,178.79,3.3729]
[1734897139867,3.96,178.91,178.79,3.3729]
[1734897140264,86.22203901,178.93,178.79,3.3729]
[1734897140469,2.7973,178.88,178.84,2.7977]
[1734897140866,86.22203901,178.93,178.79,3.3729]
[1734897141559,2.7972,178.89,178.86,2.7975]
[1734897141866,86.22203901,178.93,178.79,3.3729]
[1734897142068,35.17263089,178.92,178.79,3.3729]
[1734897143363,11.14410049,178.91,178.79,3.3729]
[1734897143569,35.17263089,178.92,178.81,2.7983]
[1734897144067,35.17263089,178.92,178.79,3.3729]
[1734897144266,11.14343972,178.91,178.83,2.798]
[1734897144563,3.96,178.96,178.82,3.96]
[1734897144763,3.96,178.96,178.83,1.7157]
[1734897144964,35.17263089,178.95,178.83,1.7157]
[1734897145169,12.6512287,178.94,178.82,3.96]
[1734897145359,2.7983,178.81,178.79,3.3729]
[1734897145561,3.96,178.87,178.75,1.7157]
[1734897145769,3.96,178.86,178.75,1.7157]
[1734897145964,2.7989,178.78,178.75,1.7157]
[1734897146169,3.96,178.86,178.75,1.7157]
[1734897147170,2.7983,178.82,178.75,1.7157]
[1734897147792,2.7983,178.82,178.77,2.7989]
[1734897148173,3.96,178.86,178.75,1.7157]
[1734897148368,3.96,178.86,178.76,2.799]
[1734897148568,3.96,178.86,178.75,1.7157]
[1734897148969,5.96015641,178.88,178.71,38.54313089]
[1734897149175,1.7617,178.88,178.74,35.17263089]
[1734897149375,17.10936245,178.88,178.72,5.4467]
[1734897150077,17.10936245,178.88,178.75,2.7992]
[1734897150078,2.798,178.84,178.75,2.7992]
[1734897150276,3.8,178.84,178.72,5.4467]
[1734897151377,3.8,178.84,178.72,1.6467]
[1734897151772,14.9570063,178.84,178.72,1.6467]
[1734897152076,11.1570063,178.87,178.72,1.6467]
[1734897152373,3.8,178.86,178.72,1.6467]
[1734897153379,3.8,178.86,178.72,36.81933089]
[1734897153568,11.15677834,178.87,178.72,36.81933089]
[1734897153875,2.7981,178.83,178.76,2.799]
[1734897154068,2.7981,178.83,178.77,3.8]
[1734897154270,1.7617,178.88,178.77,3.8]
[1734897154469,21.63638274,178.86,178.73,3.8]
[1734897155269,21.63638274,178.86,178.71,1.6854]
[1734897155968,2.7989,178.78,178.74,2.7994]
[1734897156174,2.7989,178.78,178.71,1.6854]
[1734897156875,2.799,178.77,178.73,2.7995]
[1734897157274,25.43638274,178.83,178.71,1.6854]
[1734897157474,2.7996,178.73,178.7,1.7528]
[1734897157676,21.63638274,178.8,178.7,1.7528]
[1734897157981,21.63638274,178.8,178.67,1.6037]
[1734897158169,1.7002,178.79,178.67,1.6037]
[1734897158871,2.7992,178.76,178.68,2.8003]
[1734897159071,1.7002,178.79,178.68,2.8003]
[1734897159477,2.7994,178.75,178.7,2.7999]
[1734897159995,21.63638274,178.8,178.67,1.6037]
[1734897160276,25.43638274,178.83,178.68,21.63638274]
[1734897161282,2.7989,178.78,178.74,2.7994]
[1734897161482,2.7989,178.78,178.72,3.8]
[1734897161682,2.7989,178.78,178.73,1.6495]
[1734897162375,35.1725244,178.8,178.67,1.6037]
[1734897162593,35.1725244,178.77,178.67,1.6037]
[1734897162772,2.7994,178.74,178.69,2.8001]
[1734897163178,3.8,178.79,178.67,5.4037]
[1734897163373,3.8,178.79,178.67,1.6037]
[1734897164077,1.7244,178.82,178.71,35.1725244]
[1734897164279,1.7244,178.82,178.71,38.9725244]
[1734897164474,3.9244,178.85,178.75,2.7992]
[1734897164982,0.1244,178.85,178.75,2.7992]
[1734897165490,2.7986,178.8,178.75,2.7992]
[1734897168081,3.9244,178.85,178.74,2.7994]
[1734897168676,2.7988,178.78,178.74,2.7994]
[1734897169285,2.799,178.77,178.72,2.7996]
[1734897169682,2.799,178.77,178.71,38.9725244]
[1734897169985,2.7989,178.77,178.73,2.7996]
[1734897170187,38.9725244,178.84,178.68,35.1725244]
[1734897170482,12.6567041,178.83,178.68,35.1725244]
[1734897170693,15.3476304,178.83,178.68,35.1725244]
[1734897170988,23.80528733,178.83,178.69,2.8]
[1734897171182,23.80528733,178.83,178.68,35.1725244]
[1734897171378,2.7997,178.73,178.68,37.9727244]
[1734897172586,2.7993,178.75,178.71,2.7999]
[1734897172787,3.8,178.78,178.68,35.1725244]
[1734897173392,2.7996,178.73,178.69,2.8002]
[1734897173585,2.7996,178.73,178.67,1.6037]
[1734897173788,2.7996,178.73,178.68,2.8003]
[1734897173989,2.7994,178.74,178.67,1.6037]
[1734897174393,2.7994,178.74,178.69,2.8001]
[1734897175086,38.9725244,178.78,178.67,1.6037]
[1734897175392,35.1725244,178.75,178.62,3.8]
[1734897175692,35.1725244,178.75,178.63,1.6525]
[1734897175891,35.1725244,178.75,178.65,2.8008]
[1734897176587,2.8002,178.7,178.65,2.8008]
[1734897176784,38.9725244,178.78,178.63,1.6525]
[1734897177495,38.9725244,178.78,178.66,2.8006]
[1734897177689,38.9725244,178.78,178.63,1.6525]
[1734897178093,38.9725244,178.78,178.67,2.8005]
[1734897178393,38.9725244,178.78,178.63,36.8250244]
[1734897178589,3.8,178.78,178.63,36.8250244]
[1734897179693,2.7995,178.74,178.7,2.7999]
[1734897180195,3.8,178.78,178.7,2.7999]
[1734897180391,2.7996,178.73,178.7,2.7999]
[1734897180787,3.8,178.78,178.67,3.86]
[1734897180984,38.9725244,178.78,178.64,3.86]
[1734897181388,2.7996,178.74,178.7,2.8]
[1734897181689,2.7996,178.74,178.65,35.1725244]
[1734897181895,3.8,178.78,178.71,2.7998]
[1734897182191,35.1725244,178.81,178.65,35.1725244]
[1734897182592,2.7992,178.76,178.65,35.1725244]
[1734897182991,1.6504,178.82,178.65,35.1725244]
[1734897183187,5.5104,178.82,178.63,1.6525]
[1734897183391,35.1725244,178.78,178.66,2.8006]
[1734897183790,2.8002,178.7,178.63,1.6525]
[1734897183996,3.86,178.75,178.65,2.8007]
[1734897184495,3.86,178.75,178.63,1.6525]
[1734897184695,3.86,178.79,178.64,21.66735679]
[1734897185292,21.66735679,178.78,178.63,1.6525]
[1734897185688,2.7995,178.74,178.7,2.8]
[1734897185890,2.7995,178.74,178.67,3.86]
[1734897186087,3.86,178.79,178.67,3.86]
[1734897186493,3.86,178.79,178.63,27.17985679]
[1734897186893,2.8002,178.7,178.65,2.8007]
[1734897187793,2.8002,178.7,178.63,27.17985679]
[1734897187996,2.8002,178.7,178.66,2.8006]
[1734897189198,3.86,178.75,178.63,27.17985679]
[1734897189389,25.52735679,178.75,178.63,1.6525]
[1734897189690,21.66735679,178.72,178.54,97.02526528]
[1734897189898,2.8015,178.61,178.57,2.802]
[1734897190295,21.66735679,178.65,178.54,93.16526528]
[1734897190495,1.7346,178.64,178.54,93.16526528]
[1734897190798,1.7346,178.64,178.5,93.16526528]
[1734897190998,1.7346,178.64,178.5,95.96846528]
[1734897191197,1.7346,178.64,178.5,93.16526528]
[1734897191890,1.7346,178.64,178.48,21.66735679]
[1734897192087,2.8026,178.54,178.48,24.47085679]
[1734897192288,1.7346,178.64,178.48,24.47085679]
[1734897192289,4.44,178.61,178.48,21.66735679]
[1734897192491,1.7346,178.64,178.51,21.66735679]
[1734897192697,4.44,178.66,178.54,21.66735679]
[1734897192895,4.44,178.66,178.57,21.66735679]
[1734897193095,1.6699,178.7,178.57,21.66735679]
[1734897193296,1.6699,178.7,178.55,3.2325]
[1734897193493,2.8015,178.61,178.55,6.0349]
[1734897193692,1.6699,178.7,178.55,3.2325]
[1734897194298,35.2447606,178.69,178.55,3.2325]
[1734897194896,2.8017,178.6,178.55,3.2325]
[1734897195100,4.44,178.65,178.55,3.2325]
[1734897195500,2.8022,178.56,178.55,1.6191]
[1734897195899,35.2447606,178.63,178.45,6.1397]
[1734897196103,2.8029,178.52,178.46,38.6187606]
[1734897196301,4.44,178.59,178.47,2.8036]
[1734897196602,4.44,178.59,178.49,35.2447606]
[1734897196805,4.44,178.59,178.46,3.374]
[1734897197099,6.0711,178.62,178.49,35.2447606]
[1734897197303,6.0711,178.62,178.48,35.2447606]
[1734897197901,2.8022,178.57,178.5,2.8032]
[1734897198097,41.3158606,178.62,178.46,3.374]
[1734897198298,2.8032,178.51,178.46,3.374]
[1734897198605,41.3158606,178.62,178.46,3.374]
[1734897198798,6.0711,178.62,178.46,38.6187606]
[1734897199205,6.0711,178.62,178.46,3.374]
[1734897199396,2.8028,178.53,178.46,6.1778]
[1734897199599,6.0711,178.62,178.48,35.2447606]
[1734897199802,6.0711,178.62,178.51,35.2447606]
[1734897199997,2.8018,178.6,178.53,2.8026]
[1734897200201,4.44,178.68,178.54,4.9953]
[1734897200401,35.2447606,178.67,178.54,1.6252]
[1734897200803,2.8022,178.56,178.54,1.6252]
[1734897201109,4.44,178.68,178.54,1.6252]
[1734897201405,39.6847606,178.68,178.54,1.6252]
[1734897201599,2.8021,178.57,178.54,1.6252]
[1734897202303,39.6847606,178.68,178.54,1.6252]
[1734897202504,35.2447606,178.65,178.54,1.6252]
[1734897203007,2.8024,178.56,178.54,1.6252]
[1734897203204,2.8024,178.56,178.51,1.6287]
[1734897203398,4.44,178.62,178.51,3.258]
[1734897203603,2.8032,178.5,178.44,35.2447606]
[1734897203802,2.8032,178.5,178.45,1.6929]
[1734897204007,35.2447606,178.59,178.45,4.4967]
[1734897204208,35.2447606,178.59,178.45,1.6929]
[1734897204405,1.6279,178.61,178.47,35.2447606]
[1734897205909,1.6279,178.61,178.5,2.803]
[1734897206107,1.6279,178.61,178.51,1.6903]
[1734897206509,2.8025,178.55,178.51,1.6903]
[1734897207107,2.8022,178.57,178.51,6.2348]
[1734897207306,40.0247606,178.62,178.51,3.4318]
[1734897207503,4.78,178.62,178.51,3.4318]
[1734897207710,4.78,178.62,178.52,1.6744]
[1734897209209,40.0247606,178.62,178.52,1.6744]
[1734897209411,2.8027,178.54,178.52,1.6744]
[1734897209713,40.0247606,178.62,178.52,1.6744]
[1734897210013,2.8018,178.59,178.52,1.6744]
[1734897210213,40.0247606,178.62,178.52,1.6744]
[1734897210419,40.0247606,178.62,178.51,3.4318]
[1734897210608,2.8028,178.53,178.51,3.4318]
[1734897211016,40.0247606,178.62,178.51,1.6903]
[1734897211214,1.6143,178.61,178.51,1.6903]
[1734897211711,35.2447606,178.59,178.48,1.7248]
[1734897212932,2.8033,178.49,178.46,1.6775]
[1734897213508,2.8032,178.5,178.46,1.6775]
[1734897214808,2.8027,178.53,178.46,1.6775]
[1734897215016,21.71381027,178.54,178.46,1.6775]
[1734897215512,2.8036,178.47,178.46,1.6775]
[1734897215718,21.71381027,178.54,178.43,1.7471]
[1734897216416,2.8031,178.51,178.43,1.7471]
[1734897216617,21.71381027,178.54,178.43,1.7471]
[1734897217015,4.78,178.56,178.43,1.7471]
[1734897218620,4.78,178.59,178.44,21.71381027]
[1734897218812,21.71381027,178.6,178.45,4.78]
[1734897219014,1.6143,178.61,178.47,21.71381027]
[1734897219217,21.71381027,178.63,178.48,1.6806]
[1734897219218,21.71381027,178.6,178.48,1.6806]
[1734897219515,2.8021,178.57,178.49,1.6867]
[1734897219711,21.71381027,178.6,178.49,1.6867]
[1734897220715,21.71381027,178.6,178.5,1.687]
[1734897221016,1.7147,178.62,178.5,1.687]
[1734897221017,1.7147,178.62,178.51,2.803]
[1734897221325,2.8025,178.55,178.51,2.803]
[1734897221814,2.8019,178.59,178.5,1.687]
[1734897222118,21.71381027,178.66,178.52,21.71381027]
[1734897222413,2.8021,178.57,178.53,2.8025]
[1734897223011,21.71381027,178.66,178.52,21.71381027]
[1734897223320,4.78,178.68,178.51,4.78]
[1734897223717,4.78,178.68,178.56,2.8021]
[1734897223915,4.78,178.68,178.51,4.78]
[1734897224114,2.8011,178.63,178.54,2.8024]
[1734897224315,4.78,178.68,178.54,2.8024]
[1734897224618,2.8019,178.59,178.55,2.8023]
[1734897225420,21.71381027,178.66,178.5,1.687]
[1734897225823,21.71381027,178.6,178.49,1.6867]
[1734897226018,26.49381027,178.6,178.49,1.6867]
[1734897226323,2.8029,178.52,178.49,1.6867]
[1734897226517,26.49381027,178.6,178.49,1.6867]
[1734897226919,2.8029,178.52,178.49,1.6867]
[1734897227620,21.71381027,178.57,178.45,1.6827]
[1734897227821,21.71381027,178.57,178.46,1.7174]
[1734897228817,21.71381027,178.54,178.38,77.77649567]
[1734897229018,21.71381027,178.54,178.41,4.9191]
[1734897230122,2.804,178.46,178.41,4.9191]
[1734897230827,2.8034,178.49,178.41,4.9191]
[1734897231045,4.78,178.52,178.41,4.9191]
[1734897231218,21.71381027,178.48,178.4,0.32472]
[1734897231420,2.8046,178.41,178.4,0.32472]
[1734897233023,4.78,178.45,178.4,0.32472]
[1734897233225,1.6537,178.53,178.4,0.32472]
[1734897233421,4.88,178.52,178.4,0.32472]
[1734897233824,21.71381027,178.51,178.4,0.32472]
[1734897234329,2.8035,178.48,178.4,0.32472]
[1734897234527,35.31320761,178.51,178.4,0.32472]
[1734897235227,40.19320761,178.51,178.4,0.32472]
[1734897235928,2.8041,178.44,178.4,0.32472]
[1734897236530,2.8037,178.47,178.41,2.8044]
[1734897236731,2.8037,178.47,178.41,4.4667]